Cogmind - Beta 17 @@@ ROGUE MODE // 2026.07.05 @ 19:02:07 Player: Robbedoes2000 Result: Destroyed by D-53 Grenadier with Mini Grenade Launcher Performance ------------- Evolutions (0) 0 Regions Visited (2) 400 Robots Destroyed (5) 25 Value Destroyed (36) 36 Prototype IDs (2) 40 Alien Tech Used (0) 0 Bonus (0) 0 TOTAL SCORE: 501 Bonus ------- None Cogmind --------- Core Integrity 0/250 Matter 300/300 Energy 100/100 System Corruption 0% Temperature Cool (0) Movement Core (200) Ox3 Location -10/Mines Parts ------- > --- POWER (1) -------- (None) > --- PROPULSION (2) --- (None) > --- UTILITY (2) ------ Small Storage Unit Seismic Detector > --- WEAPON (2) ------- Hammer Hammer > --- INVENTORY (8) ---- Ion Engine Wheel Wheel Structural Scanner Assault Rifle Assault Rifle Grenade Launcher Datajack Peak State ------------ > --- POWER ------------ Ion Engine > --- PROPULSION ------- Aluminum Leg Aluminum Leg > --- UTILITY ---------- Small Storage Unit Seismic Detector > --- WEAPON ----------- Assault Rifle Assault Rifle > --- INVENTORY -------- Ion Engine Wheel Wheel Light Assault Rifle [Rating: 7] Favorites ----------- Power Ion Engine Engine Ion Engine Propulsion Aluminum Leg Leg Aluminum Leg Utility Small Storage Unit Device Seismic Detector Storage Small Storage Unit Weapon Assault Rifle Ballistic Gun Assault Rifle Impact Weapon Hammer Special Melee Weapon Datajack Build | -11 -10 -10 ------- Run | Yrd Mat Min Slots Evolved . | . . . Power . | . . . Propulsion . | . . . Utility . | . . . Weapon . | . . . Parts Attached 11 | 7 4 . Power 1 | 1 . . Engine 1 | 1 . . Core . | . . . Reactor . | . . . Propulsion 2 | 2 . . Treads . | . . . Leg 2 | 2 . . Wheel . | . . . Hover . | . . . Flight . | . . . Utility 3 | 2 1 . Device 1 | 1 . . Storage 2 | 1 1 . Processor . | . . . Hackware . | . . . Protection . | . . . Artifact . | . . . Weapon 5 | 2 3 . Energy Gun . | . . . Energy Cannon . | . . . Ballistic Gun 2 | 2 . . Ballistic Cannon . | . . . Launcher . | . . . Special Weapon . | . . . Impact Weapon 2 | . 2 . Slashing Weapon . | . . . Piercing Weapon . | . . . Special Melee Weapon 1 | . 1 . Unidentified Prototypes . | . . . Parts Lost 3 | . . 3 Power 1 | . . 1 Propulsion 2 | . . 2 Utility . | . . . Weapon . | . . . Highest Loss Streak 3 | . . 3 To Critical Strikes . | . . . Average Backups 6 | 2 7 8 Power . | . 1 1 Propulsion 1 | 1 2 2 Utility . | . . 1 Weapon 3 | . 3 3 Tool/Special . | . . . Unused Backups 6 | . 1 5 Power 1 | . . 1 Propulsion 2 | . . 2 Utility 1 | . . 1 Weapon 2 | . 1 1 Tool/Special . | . . . Average Slot Usage (%) 94 | . 93 97 Engine 13 | . 13 13 Leg 27 | . 27 27 Device 13 | . 13 14 Storage 14 | . 14 14 Ballistic Gun 7 | . 11 . Impact Weapon 11 | . 9 15 Special Melee Weapon 5 | . 2 13 Peak Build Rating 7 | 7 7 7 Average Rating 6 | 5 6 6 On Entrance 4 | . 7 7 Avg Prop Armor Cover (%) . | . . . Naked Turns . | . . . Heaviest Build 15 | 15 15 15 Greatest Support 20 | 20 20 20 Greatest Overweight (x) 3 | . . 3 Average Overweight (x) . | . . . Largest Inventory Capacity 8 | 8 8 8 Average Capacity 7 | 7 8 8 Most Carried 8 | 5 8 8 Average Carried 6 | 3 7 8 Final Capacity 8 | 8 8 8 Final Carried 8 | 4 8 8 Class Distribution -------------------- 100% | Mutant Dominant Class ---------------- Mutant | -10/Materials Mutant | -10/Mines Resources | -11 -10 -10 ----------- Run | Yrd Mat Min Matter Collected 324 | 193 121 10 Remotely . | . . . Salvage Created 122 | 50 44 28 Parts 6 | 4 . 2 Haulers Intercepted 1 | . 1 . Recyclers Shooed . | . . . Parts Field Recycled . | . . . Retrieved Matter . | . . . Parts Self-Destructed . | . . . Prevented . | . . . Parts Restored . | . . . Kills | -11 -10 -10 ------- Run | Yrd Mat Min Combat Hostiles Destroyed 2 | . . 2 Melee 1 | . . 1 Classes Destroyed 3 | 1 1 1 Tunneler 2 | 2 . . Hauler 1 | . 1 . Swarmer 2 | . . 2 Best Kill Streak 1 | 1 1 1 Combat Bots Only 1 | . . 1 Max Kills in Single Turn 1 | 1 1 1 Gunslinging . | . . . Exploded . | . . . Melee 1 | . . 1 Uniques/NPCs Destroyed . | . . . Combat | -11 -10 -10 -------- Run | Yrd Mat Min Hostile Shots Fired 35 | . 4 31 Missed 6 | . . 6 Hits 29 | . 4 25 Projectile 29 | . 4 25 AOE 12 | . . 12 Critical Strikes 2 | . 1 1 Damage Taken 632 | . 58 574 Core 287 | . 29 258 Absorbed by Shields . | . . . Core Remaining (%) 100 | 100 . . Volleys Fired 5 | 5 . . Largest 2 | 2 . . Hottest 40 | 40 . . Shots Fired 10 | 10 . . Gun 10 | 10 . . Cannon . | . . . Launcher . | . . . Special . | . . . Kinetic 10 | 10 . . Thermal . | . . . Explosive . | . . . Electromagnetic . | . . . Robot Hit Streak 3 | 3 . . Robot Miss Streak 2 | 2 . . Penetration Max . | . . . Secondary Targets . | . . . Shots Hit Robots 18 | 6 6 6 Core Hits 3 | 2 . 1 Critical Kills 1 | . . 1 Critical Parts Destroyed 1 | . 1 . Critical Strikes 2 | . 1 1 Smash 2 | . 1 1 Melee Attacks 25 | . 12 13 Impact 19 | . 7 12 Slashing . | . . . Piercing . | . . . Sneak Attacks 6 | . 6 . Combat Hostiles . | . . . Follow-up Attacks . | . . . Damage Inflicted 303 | 80 70 153 Guns 80 | 80 . . Cannons . | . . . Explosions . | . . . Melee 223 | . 70 153 Ramming . | . . . Kinetic 80 | 80 . . Thermal . | . . . Explosive . | . . . Electromagnetic . | . . . Impact 223 | . 70 153 Slashing . | . . . Piercing . | . . . Highest Corruption . | . . . Average Corruption . | . . . Corruption Purged . | . . . Corruption Blocked . | . . . Overload Shots . | . . . Overflow Damage 78 | . 70 8 Projectiles . | . . . Explosions . | . . . Melee 78 | . 70 8 Knockbacks 1 | . . 1 Impact 1 | . . 1 Kinetic . | . . . Secondary . | . . . Self-Inflicted Damage . | . . . Shots . | . . . Rammed . | . . . Targets Rammed . | . . . Kicked . | . . . Crushed . | . . . Highest Temperature 7 | . 7 . Average Temperature 7 | . 7 . Received Heat Transfer 54 | . 54 . Siege Activations . | . . . Martial Activations . | . . . Shielding Activations . | . . . Robots Disrupted . | . . . Combat Hostiles . | . . . Robots Corrupted 2 | . 1 1 Combat Hostiles 1 | . . 1 Parts Fried 2 | . 1 1 Impact Corruptions 3 | . 2 1 Robots Melted . | . . . Combat Hostiles . | . . . Parts Melted . | . . . Heat Transferred . | . . . Parts Sabotaged . | . . . Parts Stolen . | . . . Parts Stripped . | . . . Power Chain Reactions . | . . . Alert | -11 -10 -10 ------- Run | Yrd Mat Min Maximum Alert Level . | . . . Low Security (%) 100 | 100 100 100 Level 1 . | . . . Level 2 . | . . . Level 3 . | . . . Level 4 . | . . . Level 5 . | . . . High Security . | . . . Max Security . | . . . Peak Influence 40 | 5 7 40 Initial 3 | . 3 . Average 4 | . . 15 Influence Increases 82 | 10 21 51 Destroy 0b10 Robot/C 40 | . . 40 Destroy 0b10 Robot/NC 15 | 10 5 . Destroy Leader 12 | . 2 10 Successful Hack 9 | . 9 . Destroy Structure 6 | . 5 1 Influence Decreases 82 | 5 26 51 Entered New Map 2 | . 2 . Time Decay 80 | 5 24 51 Squads Dispatched . | . . . Investigation . | . . . Extermination . | . . . Reinforcement . | . . . Assault . | . . . Garrison . | . . . Intercept . | . . . Searches Triggered . | . . . Construction Impeded . | . . . Haulers Reinforced . | . . . Active Scanning Responses . | . . . Cargo Convoy Interrupts . | . . . Stealth | -11 -10 -10 --------- Run | Yrd Mat Min Distress Signals . | . . . Communications Jammed . | . . . Distress Signals . | . . . Times Spotted 10 | . 4 6 Peak Tracking Total 3 | . 2 3 Tactical Retreats . | . . . Traps | -11 -10 -10 ------- Run | Yrd Mat Min Traps Triggered 1 | . 1 . Indirectly . | . . . Trap Hack Attempts . | . . . Triggered . | . . . Disarmed . | . . . Reprogrammed . | . . . Reused . | . . . Traps Extracted . | . . . Installed . | . . . Triggered . | . . . Machines | -11 -10 -10 ---------- Run | Yrd Mat Min Machines Disabled . | . . . Max in Single Turn . | . . . Machines Repaired . | . . . Machines Dismantled . | . . . Machines Sabotaged . | . . . Overloaded Fab Kills . | . . . Hacking | -11 -10 -10 --------- Run | Yrd Mat Min Machines Accessed 3 | . 3 . Terminals 2 | . 2 . Fabricators . | . . . Repair Stations . | . . . Recycling Units 1 | . 1 . Scanalyzers . | . . . Garrison Access . | . . . Total Hacks 11 | . 11 . Successful 9 | . 9 . Failed 2 | . 2 . Catastrophic . | . . . Database Lockouts . | . . . Manual . | . . . Terminals 7 | . 7 . Fabricators . | . . . Repair Stations . | . . . Recycling Units 4 | . 4 . Scanalyzers . | . . . Garrison Access . | . . . Terminal Hacks 6 | . 6 . Prototype ID Bank 1 | . 1 . Alert Level 2 | . 2 . Locate Traps 2 | . 2 . Transport Status 1 | . 1 . Fabricator Hacks . | . . . Repair Station Hacks . | . . . Recycling Unit Hacks 3 | . 3 . Recycle Component 1 | . 1 . Process 1 | . 1 . Retrieve Matter 1 | . 1 . Scanalyzer . | . . . Garrison Access Hacks . | . . . Unauthorized Hacks . | . . . Terminals . | . . . Fabricators . | . . . Repair Stations . | . . . Recycling Units . | . . . Scanalyzers . | . . . Garrison Access . | . . . Data Cores Recovered . | . . . Used . | . . . Hacking Detections 2 | . 2 . Full Trace Events . | . . . Feedback Events . | . . . Feedback Blocked . | . . . Robot Schematics Acquired . | . . . Robots Built . | . . . Authchips . | . . . Time . | . . . Total Robot Build Rating . | . . . Part Schematics Acquired . | . . . Parts Built . | . . . Authchips . | . . . Time . | . . . Total Part Build Rating . | . . . Part Studies Acquired . | . . . Parts Repaired . | . . . Time . | . . . Parts Recycled 1 | . 1 . Recycled Matter 56 | . 56 . Retrieved Matter 56 | . 56 . Retrieved Components . | . . . Parts Scanalyzed . | . . . Part Schematics Acquired . | . . . Parts Damaged . | . . . Bothacking | -11 -10 -10 ------------ Run | Yrd Mat Min Used RIF Installer . | . . . Robots Hacked 2 | . 2 . Non-combat 2 | . 2 . Combat . | . . . Robot Hacks Applied 3 | . 3 . parse_system 2 | . 2 . no_distress 1 | . 1 . Relay Couplers Released . | . . . Fabnet Peak Effective % . | . . . Robots Rewired . | . . . Allies Hacked . | . . . Hacks Repelled . | . . . Allies | -11 -10 -10 -------- Run | Yrd Mat Min Total Allies . | . . . Largest Group . | . . . Highest-Rated Group . | . . . Highest-Rated Ally . | . . . Total Orders . | . . . Ally Attacks . | . . . Total Damage . | . . . Kills . | . . . Allies Corrupted . | . . . Allies Melted . | . . . Intel | -11 -10 -10 ------- Run | Yrd Mat Min Active Infowar (turns) 432 | 33 265 134 Seismic 432 | 33 265 134 Robot Analysis Total . | . . . Derelict Logs Recovered . | . . . Drone Launches . | . . . Drone Recoveries . | . . . Exploration | -11 -10 -10 ------------- Run | Yrd Mat Min Turns Passed 524 | 119 271 134 Spaces Moved 338 | 78 180 80 Core 18 | 17 . 1 Treads . | . . . Legs 320 | 61 180 79 Wheels . | . . . Hover . | . . . Flight . | . . . Fastest Speed 50 | 50 120 120 Average Speed 117 | 104 120 122 Slowest Speed 200 | 120 120 200 Overloaded Moves . | . . . Propulsion Burnouts . | . . . Robots Hopped . | . . . Potential Cave-ins . | . . . Cave-ins Triggered . | . . . Exploration Rate (%) 19 | 3 39 15 Regions Visited 2 Branch Regions 1 Pre-discovered Areas . | . . . Known Exits Taken . | . . . Unknown Exits Taken 2 | 1 1 . Scrap Searched . | . . . Spaces Dug 6 | . 5 1 Terrain Destroyed 6 | . 5 1 Melee 6 | . 5 1 Projectile . | . . . AOE . | . . . Terrain Rammed . | . . . Walls Destroyed . | . . . Machines Disabled . | . . . Actions | -11 -10 -10 --------- Run | Yrd Mat Min Total 416 | 105 217 94 Wait 15 | 5 10 . Move 336 | 77 179 80 Hop . | . . . Pick Up 18 | 11 7 . Fast Attach 2 | . 2 . Attach 9 | 7 2 . Detach . | . . . Swap 5 | . 4 1 Drop 1 | . 1 . Fire 5 | 5 . . Melee 25 | . 12 13 Ram . | . . . Kick . | . . . Crush . | . . . Escape Stasis . | . . . Rewire . | . . . Trap . | . . . Miscellaneous . | . . . Route ------- -11/Scrapyard -10/Materials -10/Mines (discovered 1 exit: [*Mat]) History --------- Turn | Location | Event 23 | -11/Scrapyard | Discovered new exit (range 15) 120 | -11/Scrapyard | Entered Materials 315 | -10/Materials | Build established: Mutant 374 | -10/Materials | Discovered new exit (range 13) 391 | -10/Materials | Entered Mines 448 | -10/Mines | Discovered new exit (range 14) 497 | -10/Mines | Assembled infested the area 517 | -10/Mines | Core integrity fell below 50% 522 | -10/Mines | Core integrity fell below 20% 525 | -10/Mines | Destroyed by D-53 Grenadier with Mini Grenade Launcher Last Messages --------------- 00497_ ALERT: Infestation in the mines, dispatching Demolisher response squad. 00513_ C-45 Heavy ARC bursts open, deploying its payload. 00513_ D-53 Grenadier unfolds itself. 00513_ Aluminum Leg destroyed. 00515_ R-06 Scavenger destroyed. 00516_ U-05 Engineer lays Concrete. 00516_ T-07 Excavator destroyed. 00517_ U-05 Engineer lays Concrete. 00518_ U-05 Engineer builds a Wall. 00518_ Ion Engine destroyed. 00519_ The unstable cave ceiling collapses. 00519_ U-05 Engineer lays Concrete. 00521_ Aluminum Leg destroyed. 00522_ U-05 Engineer lays Concrete. 00522_ U-05 Engineer builds a Wall. 00523_ The unstable cave ceiling collapses. 00523_ U-05 Engineer lays Concrete. 00523_ D-53 Grenadier destroyed. 00524_ U-05 Engineer lays Concrete. Map ----- +----------------------------------------------------+ | | | | | | | | | | | | | | | ?????????????????????????????????????? | | ?????????????????????????????????????? | | ????####?????????????????????????????? | | ???## ##????????????????????????????? | | ???# #????????????????????????????? | | ??## #????????????????????????????? | | ??# ###############??????????????? | | ??# < #??????????????? | | ??# #?####?????????? | | ??# ########### ### ##????????? | | ??## ##?????????# #????????? | | ???# ###???####???# ## #????????? | | ???# #????## ##??# ##%% #????????? | | ???# #????# #?## #????????? | | ???# ######[! #?#" %##????????? | | ???# u==% ####### #?????????? | | ???# u ##???## ##?????????? | | ???###### ! d ##???####??????????? | | ??????# @ #?????????????????? | | ??????# #?????????????????? | | ??????# ##????????????????? | | ???# # ##???????????????? | | ???##? #???????????????? | | ?????## #???????????????? | | ??????## ## #???????????????? | | ???????### ##???????????????? | | ?????????# ###????????????????? | | ?????????# # ##??????????????????? | | ?????????# ######???????????????????? | | ?????????# #????????????????????????? | | ?????????# #????????????????????????? | | ?????????# #????????????????????????? | | ?????????# #????????????????????????? | | ?????????# #????????????????????????? | | ?????????# ????????????????????????? | | ?????????# ????????????????????????? | | ?????????####????????????????????????? | | ?????????????????????????????????????? | | ?????????????????????????????????????? | | ?????????????????????????????????????? | | ?????????????????????????????????????? | | ?????????????????????????????????????? | | ?????????????????????????????????????? | +----------------------------------------------------+ Best States ------------- Heat Dissipation 25 Energy Generation 10 Energy Capacity 250 Matter Stores 300 Matter Capacity 300 Sight Range 16 Terrain Scan Density 10 Evasion (%) 55 Item Schematics ----------------- None Robot Schematics ------------------ None Fabricated ------------ Nothing Repaired ---------- Nothing Studied --------- None Alien Tech Used ----------------- None Achievements -------------- Junior Dev Overwhelming Challenges ------------ None Game ------ Seed NeutrinoPlexusDeconstructor Manual? 0 Play Time 00:11:10 Cumulative 1.5 hours Start 2026.07.05 @ 18:49:07 End 2026.07.05 @ 19:02:07 Sessions 1 Manual Loads 0 Difficulty Rogue Special Mode None Game No. 4 Rogue 4 Adventurer 0 Explorer 0 Win Type - Total 0 Types 0/0/0/0/0/0/0/0/0/0 Lore% 4 Gallery% 8 Achievement% 14 Wizard Run 0 Options --------- Layout 0 ASCII 0 Keyboard 0 Movement Mouse Keybinds 0 Fullscreen 2 Font 24/Smallcaps Map View 76x50 Zoom Use 0% Tactical HUD 1 Map Filters NONE Filters NONE Steam 1 RUN: 601b05a8-6a42-433c-834f-cd9599ac6c87